bitfinex/quotes_ETHUSD_20240714
["timestamp","ask_amount","ask_price","bid_price","bid_amount"]
[1720924492497,0.32946919,3179.7,3179.3,0.771]
[1720924492498,1.0897834,3179.4,3179.3,0.771]
[1720924495613,0.32946919,3179.7,3179.3,0.771]
[1720924495812,1.08976947,3179.4,3179.3,0.771]
[1720924496888,1.08976947,3179.4,3179.1,0.771]
[1720924497214,1.08976947,3179.3,3179.1,0.771]
[1720924497418,1.08976947,3179.6,3179.1,1.1972435]
[1720924497599,1.08976947,3179.5,3179.1,1.1972435]
[1720924497798,1.08976947,3179.6,3179.1,1.1972435]
[1720924499128,1.08981305,3179.5,3179.1,1.1972435]
[1720924499337,1.08981305,3179.4,3179.1,0.771]
[1720924499548,1.08981305,3179.4,3178.8,2.3977]
[1720924499549,2.3117,3179.5,3178.8,0.771]
[1720924499692,1.08987668,3179.4,3178.8,0.771]
[1720924499892,1.08987668,3179.3,3179.0,0.771]
[1720924500201,1.08987668,3179.2,3179.0,0.771]
[1720924500395,1.08987668,3179.4,3179.0,0.771]
[1720924500600,1.08987668,3179.3,3179.0,0.771]
[1720924500800,1.08987668,3179.2,3179.0,0.771]
[1720924501017,1.08987668,3179.4,3179.0,0.771]
[1720924501217,1.08987668,3179.4,3178.6,3.0]
[1720924501218,1.08987668,3179.3,3178.8,0.771]
[1720924501438,1.08994348,3179.2,3178.8,0.771]
[1720924501733,1.08994348,3179.1,3178.8,0.771]
[1720924501910,0.34015767,3179.4,3178.8,0.771]
[1720924501911,1.08994348,3179.3,3178.8,0.771]
[1720924502350,1.08995211,3179.2,3178.8,0.771]
[1720924502513,1.08995211,3179.1,3178.8,0.771]
[1720924502848,1.08995211,3179.0,3178.8,0.771]
[1720924503041,1.08995211,3179.3,3178.8,0.771]
[1720924504599,0.34015767,3179.4,3178.8,0.771]
[1720924504600,1.08996209,3179.2,3178.8,0.771]
[1720924504953,1.0899958,3179.1,3178.8,0.771]
[1720924505248,1.0899958,3179.0,3178.8,0.771]
[1720924505395,1.0899958,3178.9,3178.8,0.771]
[1720924506912,1.0899958,3178.9,3178.3,3.0]
[1720924507222,1.0899958,3178.8,3178.4,0.771]
[1720924507418,1.0899958,3178.9,3178.4,0.771]
[1720924508003,1.09004866,3178.8,3178.4,0.771]
[1720924508247,1.09004866,3178.7,3178.4,0.771]
[1720924508413,1.09004866,3178.6,3178.4,0.771]
[1720924508728,2.61005113,3179.0,3178.4,0.771]
[1720924508897,1.09004214,3178.9,3178.4,1.173508]
[1720924509102,1.09004214,3178.8,3178.4,1.173508]
[1720924509307,1.09004214,3178.7,3178.4,1.173508]
[1720924509512,1.09004214,3178.6,3178.4,1.173508]
[1720924509718,2.61005113,3179.0,3178.4,1.173508]
[1720924509934,1.09004236,3178.9,3178.4,1.173508]
[1720924510145,1.09004236,3178.8,3178.4,1.173508]
[1720924510349,1.09004236,3178.9,3178.6,0.771]
[1720924510524,1.09004236,3178.8,3178.6,0.771]
[1720924510830,1.09004236,3178.7,3178.6,0.771]
[1720924511234,1.08999768,3178.7,3178.6,0.771]
[1720924511434,1.08999797,3178.9,3178.6,0.771]
[1720924511632,0.32945113,3179.0,3178.6,0.771]
[1720924511836,1.08999304,3178.9,3178.6,0.771]
[1720924512147,1.08999304,3178.8,3178.6,0.771]
[1720924512439,1.08999304,3178.7,3178.6,0.771]
[1720924514551,0.32945113,3179.0,3178.6,0.771]
[1720924514847,1.08998964,3178.9,3178.6,0.771]
[1720924515047,1.08998964,3178.8,3178.6,0.771]
[1720924515253,1.08998964,3178.7,3178.6,0.771]
[1720924515447,1.08998964,3178.9,3178.6,0.771]
[1720924517816,1.09001379,3178.8,3178.6,0.771]
[1720924518051,1.09001379,3178.7,3178.6,0.771]
[1720924518222,1.09001379,3178.9,3178.6,0.771]
[1720924521361,1.08999188,3178.8,3178.6,0.771]
[1720924521668,1.08999188,3178.7,3178.6,0.771]
[1720924522121,1.08999188,3178.9,3178.6,0.771]
[1720924524608,0.32945113,3179.0,3178.6,0.771]
[1720924524886,1.08999571,3178.9,3178.6,0.771]
[1720924525186,1.09002291,3178.8,3178.6,0.771]
[1720924525361,0.32945113,3179.0,3178.6,0.771]
[1720924525362,1.09002291,3178.7,3178.6,0.771]
[1720924526506,0.32945113,3179.0,3178.7,2.287]
[1720924526710,0.32945113,3179.0,3178.9,5.80418]
[1720924526857,2.4626,3180.2,3178.9,8.09118]
[1720924527062,2.4626,3180.2,3179.6,0.771]
[1720924527063,1.0896864,3180.1,3179.6,0.771]
[1720924527304,1.0896864,3180.0,3179.6,0.771]
[1720924527510,1.0896864,3179.9,3179.6,0.771]
[1720924527827,1.08967263,3179.8,3179.4,0.771]
[1720924527955,0.32945269,3180.0,3179.3,2.287]
[1720924527956,1.08967263,3179.7,3179.3,2.287]
[1720924528159,1.08967263,3179.6,3179.4,0.771]
[1720924528378,1.08967263,3179.9,3179.4,0.771]
[1720924528579,1.08967263,3179.8,3179.4,0.771]
[1720924528779,1.08967263,3179.9,3179.4,0.771]
[1720924529045,1.08967263,3179.8,3179.4,0.771]
[1720924529540,1.08967263,3179.7,3179.4,0.771]
[1720924529715,1.08967263,3179.9,3179.4,0.771]
[1720924530019,1.08967263,3179.8,3179.4,0.771]
[1720924530226,1.08967263,3179.9,3179.4,0.771]
[1720924530888,0.32945269,3180.0,3179.4,0.771]
[1720924531111,1.08969761,3179.9,3179.4,0.771]
[1720924531432,1.08969761,3179.8,3179.4,0.771]
[1720924531598,0.32945269,3180.0,3179.4,0.771]
[1720924531599,1.08969761,3179.7,3179.4,0.771]
[1720924531779,1.08969761,3179.6,3179.4,0.771]
[1720924531985,1.08969761,3179.9,3179.4,0.771]
[1720924532197,1.08969761,3179.9,3179.4,3.073625]
[1720924532543,1.08969761,3179.9,3179.8,0.771]
[1720924533207,1.08969761,3179.9,3179.8,3.058]
[1720924533613,1.08969761,3179.9,3179.8,5.57388]
[1720924534442,1.08954525,3179.9,3179.8,5.57388]
[1720924534612,0.32947666,3180.5,3179.8,6.382863]
[1720924534811,1.08954424,3180.4,3180.0,0.771]
[1720924535014,0.32947666,3180.5,3180.0,0.771]
[1720924535215,1.08954408,3180.4,3180.0,0.771]
[1720924535416,1.08954408,3180.3,3180.0,0.771]
[1720924535744,1.08954408,3180.2,3180.0,0.771]
[1720924535912,1.08954408,3180.1,3180.0,0.771]
[1720924536241,1.08954408,3180.1,3180.0,1.4092863]
[1720924537123,1.08954408,3180.1,3180.0,0.771]
[1720924537675,0.32947666,3180.5,3180.0,0.771]
[1720924537796,1.08953847,3180.4,3180.0,0.771]
[1720924538201,1.08954721,3180.3,3180.0,0.771]
[1720924538501,1.08954721,3180.2,3180.0,0.771]
[1720924538703,1.08954721,3180.4,3180.0,0.771]
[1720924541103,2.17906777,3180.3,3180.0,0.771]
[1720924541306,1.08953048,3180.2,3180.0,0.771]
[1720924541505,1.08953729,3180.3,3180.0,0.771]
[1720924541705,1.08952208,3180.2,3180.0,0.771]
[1720924541920,1.08953729,3180.3,3180.0,3.1056]
[1720924542134,1.08950215,3180.2,3180.0,3.1056]
[1720924542343,1.08953729,3180.3,3180.1,0.771]
[1720924542504,1.08949834,3180.2,3180.1,0.771]
[1720924542706,1.08953729,3180.3,3180.1,0.771]
[1720924545852,1.08949486,3180.2,3180.1,0.771]
[1720924546163,1.08953729,3180.3,3180.1,0.771]
[1720924547861,1.08950061,3180.2,3180.1,0.771]
[1720924548337,1.08950061,3180.2,3179.7,2.3346]
[1720924548537,1.08953729,3180.3,3179.9,0.771]
[1720924548861,1.44704278,3180.2,3179.9,0.771]
[1720924549073,0.35749373,3180.2,3179.9,0.771]
[1720924549271,1.08956369,3180.1,3179.9,0.771]
[1720924549614,0.35749373,3180.2,3179.9,0.771]
[1720924549947,1.08956778,3180.1,3179.9,0.771]
[1720924550254,2.4854,3180.4,3179.9,0.771]
[1720924550454,1.08955487,3180.3,3179.9,0.771]
[1720924550752,1.08955487,3180.2,3179.9,0.771]
[1720924551057,1.08955543,3180.1,3179.9,0.771]
[1720924551216,2.76688767,3180.4,3179.9,0.771]
[1720924551419,1.08956198,3180.3,3179.9,0.771]
[1720924551767,2.4854,3180.1,3179.7,0.771]
[1720924551969,2.4854,3180.1,3179.5,0.771]
[1720924551970,1.08956198,3180.0,3179.5,0.771]
[1720924552412,1.08956198,3180.0,3179.7,0.771]
[1720924554155,2.4854,3180.1,3179.7,0.771]
[1720924554369,1.08967589,3179.9,3179.7,0.771]
[1720924554667,1.08967589,3179.8,3179.7,0.771]
[1720924557452,2.4854,3180.1,3179.7,0.771]
[1720924557760,1.08969059,3180.0,3179.7,0.771]
[1720924560756,1.08971481,3179.9,3179.5,0.771]
[1720924560935,2.4854,3180.1,3179.5,0.771]
[1720924560936,1.08971481,3179.8,3179.5,0.771]
[1720924561137,1.08971481,3179.7,3179.5,0.771]
[1720924561337,1.08971481,3180.0,3179.5,0.771]
[1720924561528,1.51250197,3180.0,3179.5,0.771]
[1720924561728,1.08971481,3179.9,3179.5,0.771]
[1720924562129,2.4854,3180.1,3179.5,0.771]
[1720924562130,1.08971481,3180.0,3179.5,0.771]
[1720924563080,1.08971481,3180.0,3179.0,0.771]
[1720924563081,1.08971481,3179.9,3179.0,0.771]
[1720924563260,3.64528629,3179.8,3179.0,0.771]
[1720924563583,1.08989653,3179.7,3179.0,0.771]
[1720924563785,1.08989653,3179.6,3179.0,0.771]
[1720924564001,1.08988198,3179.5,3179.2,0.771]
[1720924564156,1.08988198,3179.4,3179.2,0.771]
[1720924564488,1.08988198,3179.3,3179.2,0.771]
[1720924565007,3.45938198,3179.3,3178.8,0.771]
[1720924565169,1.08988198,3179.2,3178.8,0.771]
[1720924565351,1.08988198,3179.2,3178.7,2.3476]
[1720924565352,1.08988198,3179.2,3179.0,0.771]
[1720924566774,1.08995547,3179.1,3179.0,0.771]
[1720924568954,1.08995547,3179.1,3179.0,3.1186]
[1720924569266,1.08995547,3179.1,3179.0,3.682121]
[1720924569876,0.32940594,3179.5,3179.0,3.682121]
[1720924570075,1.08981358,3179.4,3179.0,2.911121]
[1720924570286,0.32940594,3179.5,3179.0,2.911121]
[1720924570287,0.32940594,3179.5,3179.3,0.771]
[1720924570506,1.08981186,3179.4,3179.3,0.771]
[1720924573292,1.08981796,3179.4,3179.3,0.771]
[1720924575474,1.08981796,3179.4,3179.3,3.616006]
[1720924575783,0.32943144,3180.0,3179.3,3.616006]
[1720924575969,1.08964958,3179.9,3179.7,0.771]
[1720924576182,1.08964958,3179.8,3179.7,0.771]
[1720924576376,0.32943144,3180.0,3179.7,0.771]
[1720924576572,1.08959984,3179.9,3179.3,0.328736]
[1720924576784,1.08959984,3179.8,3179.4,0.771]
[1720924576986,1.08969811,3179.7,3179.4,0.771]
[1720924577176,1.08969811,3179.6,3179.4,0.771]
[1720924577379,1.08969811,3179.8,3179.4,0.771]
[1720924578001,1.08969811,3179.8,3179.6,0.771]
[1720924579272,1.08969811,3179.7,3179.6,0.771]
[1720924579795,2.3695,3180.2,3179.6,0.771]
[1720924579970,1.08964116,3180.1,3179.8,0.771]
[1720924581511,1.08964116,3180.1,3179.6,0.771]
[1720924581708,0.34591412,3180.0,3179.6,0.771]
[1720924581879,3.37914116,3179.9,3179.4,0.771]
[1720924582081,1.08964116,3179.8,3179.4,0.771]
[1720924583076,2.2895,3179.9,3179.4,0.771]
[1720924583077,1.0897168,3179.7,3179.4,0.771]
[1720924583271,2.2895,3179.5,3178.5,3.95845652]
[1720924583494,1.0897168,3179.4,3178.8,0.771]
[1720924585426,1.0897168,3179.4,3179.0,0.771]
[1720924586205,1.0897168,3179.4,3178.8,0.771]
[1720924586392,1.08999285,3179.3,3178.8,0.771]
[1720924586722,2.2895,3179.5,3178.8,0.771]
[1720924586723,1.08999285,3179.2,3178.8,0.771]
[1720924586898,1.08999395,3179.1,3178.8,0.771]
[1720924587214,1.08999395,3179.0,3178.8,0.771]
[1720924587389,1.08999395,3179.4,3178.8,0.771]
[1720924587593,2.2895,3179.0,3178.8,0.771]
[1720924587922,1.08999395,3178.9,3178.8,0.771]
[1720924588493,1.08999395,3179.2,3178.8,0.771]
[1720924588740,1.08999395,3179.1,3178.8,0.771]
[1720924589039,1.08999395,3179.0,3178.8,0.771]
[1720924589220,1.08999395,3178.9,3178.8,0.771]
[1720924589416,2.2895,3178.8,3177.8,9.14584858]
[1720924589587,1.09007656,3178.7,3178.6,0.771]
[1720924589781,1.09007656,3178.7,3177.8,6.62843858]
[1720924589985,2.2895,3178.5,3177.8,6.62843858]
[1720924590211,1.42803422,3178.4,3178.0,0.771]
[1720924590531,2.2895,3178.5,3178.2,0.771]
[1720924590532,1.09007656,3178.3,3178.2,0.771]
[1720924590689,1.09007656,3178.4,3178.2,0.771]
[1720924592726,2.2895,3178.5,3177.8,6.62843858]
[1720924592909,1.09027014,3178.4,3177.8,6.62843858]
[1720924593229,1.09027014,3178.3,3177.8,6.62843858]
[1720924593414,1.09027014,3178.2,3177.8,7.54354444]
[1720924593613,1.09027014,3178.1,3177.8,7.54354444]
[1720924593824,2.2895,3178.5,3177.8,7.54354444]
[1720924594014,1.0902699,3178.4,3177.8,6.62843858]
[1720924594198,1.0902699,3178.3,3177.8,6.62843858]
[1720924594399,1.0902699,3178.2,3177.8,6.62843858]
[1720924594731,2.2895,3178.5,3177.8,6.62843858]
[1720924594909,1.09024339,3178.4,3177.8,6.62843858]
[1720924595319,1.09024969,3178.3,3177.8,6.62843858]
[1720924595519,1.09024969,3178.2,3177.8,7.54354444]
[1720924595720,1.09024969,3178.4,3177.8,7.54354444]
[1720924595923,1.09024969,3178.4,3177.8,6.62843858]
[1720924596298,2.2895,3178.5,3177.8,6.62843858]
[1720924596504,1.09029291,3178.4,3177.8,6.62843858]
[1720924596703,1.09029291,3178.3,3177.8,6.62843858]
[1720924597033,1.09029291,3178.2,3177.8,6.62843858]
[1720924597216,1.09029291,3178.4,3177.8,6.62843858]
[1720924597414,1.09029365,3178.3,3177.8,6.62843858]
[1720924597598,1.09029365,3178.2,3177.8,7.29178244]
[1720924597804,2.2895,3178.5,3177.8,7.29178244]
[1720924598009,1.09028347,3178.4,3177.8,7.29178244]
[1720924598212,1.09028347,3178.3,3177.8,7.29178244]
[1720924598414,2.2895,3178.5,3177.8,7.29178244]
[1720924598734,1.09028506,3178.4,3177.8,7.29178244]
[1720924598933,1.09028506,3178.4,3177.9,0.72917824]
[1720924599133,1.09028506,3178.3,3177.9,0.72917824]
[1720924599335,2.2895,3178.5,3177.9,0.72917824]
[1720924599541,1.09024009,3178.4,3177.9,0.72917824]
[1720924599711,2.2895,3178.5,3177.9,0.72917824]
[1720924599924,1.09024026,3178.4,3177.9,0.72917824]
[1720924600105,1.09024026,3178.3,3178.0,0.49402155]
[1720924600446,2.2895,3178.9,3178.0,0.49402155]
[1720924600612,1.09017841,3178.8,3178.0,0.49402155]
[1720924600812,1.09017841,3178.7,3178.0,0.49402155]
[1720924601126,1.09017841,3178.6,3178.1,0.35390998]
[1720924601332,2.2895,3178.9,3178.1,0.35390998]
[1720924601505,1.09016539,3178.8,3178.1,0.35390998]
[1720924601709,1.09016539,3178.7,3178.1,0.35390998]
[1720924601904,1.09016539,3178.6,3178.1,0.35390998]
[1720924602104,2.2895,3178.9,3178.1,0.35390998]
[1720924602309,1.09017726,3178.8,3178.1,0.35390998]
[1720924602533,1.09017726,3178.7,3178.1,0.35390998]
[1720924602733,1.09017726,3178.6,3178.1,0.35390998]
[1720924603131,2.2895,3178.9,3178.1,0.35390998]
[1720924603333,1.09016194,3178.8,3178.1,0.35390998]
[1720924603521,1.09016194,3178.7,3178.1,0.35390998]
[1720924603723,1.09016194,3178.6,3178.1,0.35390998]
[1720924603941,2.2895,3178.9,3178.1,0.35390998]
[1720924604135,1.09015141,3178.8,3178.1,0.35390998]
[1720924604339,1.09015141,3178.7,3178.1,0.35390998]
[1720924604507,1.09015141,3178.8,3178.1,0.35390998]
[1720924604712,0.32952404,3178.7,3178.1,0.35390998]
[1720924604912,1.09015141,3178.6,3178.1,0.35390998]
[1720924606240,1.09015141,3178.6,3178.0,0.49402155]
[1720924606443,0.32952404,3178.7,3177.9,0.72917824]
[1720924606635,1.09022385,3178.6,3177.9,0.72917824]
[1720924609862,1.09023292,3178.5,3177.9,0.72917824]
[1720924610031,1.09023292,3178.4,3177.9,0.72917824]
[1720924610226,1.09023292,3178.6,3177.9,0.72917824]
[1720924610856,0.07865443,3178.5,3177.8,6.62843858]
[1720924611161,1.09023292,3178.4,3177.8,6.62843858]
[1720924612658,1.09023292,3178.4,3178.0,0.773]
[1720924613253,1.09025652,3178.3,3178.0,0.773]
[1720924613422,1.09025652,3178.2,3178.0,0.773]
[1720924613618,1.09025652,3178.4,3178.0,0.773]
[1720924613818,1.09025652,3178.4,3178.0,1.20452599]
[1720924614057,1.09025652,3178.4,3178.2,0.773]
[1720924614219,1.09025652,3178.6,3178.2,0.773]
[1720924614423,1.09025652,3178.5,3178.2,0.773]
[1720924614643,1.09025652,3178.4,3178.2,0.773]
[1720924614923,1.09025652,3178.3,3178.2,0.773]
[1720924615130,3.51635652,3178.3,3177.8,6.62843858]
[1720924615336,1.09025652,3178.2,3177.8,6.62843858]
[1720924616443,1.09031333,3178.1,3177.8,6.62843858]
[1720924616640,1.09031333,3178.0,3177.8,6.62843858]
[1720924616845,1.09031333,3177.9,3177.6,0.005]
[1720924617048,1.09031333,3177.8,3177.6,0.778]
[1720924617263,1.09031333,3178.2,3177.6,0.778]
[1720924617419,1.09031333,3177.7,3177.6,0.778]
[1720924618322,1.09031333,3178.2,3177.6,1.16726606]
[1720924618527,1.09031333,3178.2,3177.8,0.773]
[1720924619862,1.09032701,3178.1,3177.8,0.773]
[1720924620072,1.09032701,3178.0,3177.8,0.773]
[1720924620270,1.09032701,3177.9,3177.8,0.773]
[1720924622159,2.4261,3178.3,3177.8,0.773]
[1720924622370,1.09033273,3177.9,3177.8,0.773]
[1720924625461,1.09033273,3177.9,3177.8,1.09323]
[1720924625675,1.09027129,3177.9,3177.8,1.09323]
[1720924626024,0.32954141,3178.4,3177.8,1.09323]
[1720924626227,0.32954141,3178.4,3178.0,0.773]
[1720924626228,1.09027161,3178.3,3178.0,0.773]
[1720924626460,1.09027161,3178.2,3178.0,0.773]
[1720924626635,1.09027161,3178.1,3177.8,0.773]
[1720924626838,1.09027161,3178.3,3177.8,0.773]
[1720924627933,1.09027161,3178.3,3177.6,0.005]
[1720924628138,1.09027161,3178.3,3177.7,0.773]
[1720924628342,2.429,3178.2,3177.7,0.773]
[1720924628565,1.09027161,3178.1,3177.7,0.773]
[1720924629051,1.09030623,3178.0,3177.7,0.773]
[1720924629255,1.09030623,3177.9,3177.7,0.723]
[1720924629431,1.09030623,3178.1,3177.7,1.20593485]
[1720924629630,1.09030623,3178.0,3177.9,0.773]
[1720924632198,2.75854141,3178.4,3177.9,0.773]
[1720924632459,1.0902708,3178.3,3177.9,0.773]
[1720924632669,1.0902708,3178.2,3177.9,0.773]
[1720924632860,1.0902708,3178.1,3177.9,0.773]
[1720924633040,1.0902708,3178.0,3177.9,0.773]
[1720924635573,2.75854141,3178.4,3177.9,0.773]
[1720924635871,1.09026998,3178.3,3177.9,0.773]
[1720924636174,1.09026998,3178.2,3177.9,0.773]
[1720924636381,1.09026998,3178.1,3177.9,0.773]
[1720924636534,1.09026998,3178.3,3177.9,0.773]
[1720924636935,1.09026998,3178.3,3178.0,2.4243]
[1720924637200,1.09026998,3178.3,3178.2,0.773]
[1720924638763,1.09026998,3178.3,3178.2,3.29014]
[1720924638962,2.429,3179.1,3178.3,2.51706]
[1720924639272,0.773,3179.6,3177.8,0.44745628]
[1720924639273,1.41968771,3179.0,3178.8,0.773]
[1720924639592,1.08996499,3178.9,3178.8,0.773]
[1720924640122,1.08996499,3178.9,3178.8,3.28967]
[1720924642199,0.32959333,3179.4,3178.9,2.51653]
[1720924642419,0.32959333,3179.4,3179.3,0.773]
[1720924642566,1.41938821,3179.4,3179.1,2.51642]
[1720924642765,1.08979488,3179.3,3179.0,4.86311]
[1720924642962,1.08979488,3179.3,3179.0,5.601087]
[1720924644176,1.08979488,3179.3,3179.1,2.51643]
[1720924645522,1.08977337,3179.2,3179.1,2.51643]
[1720924645810,0.32959333,3179.4,3179.1,2.51643]
[1720924646018,1.08975851,3179.3,3179.1,2.51643]
[1720924646192,0.32959333,3179.4,3179.2,0.5601007]
[1720924646394,1.08977938,3179.3,3179.2,0.5601007]
[1720924646982,0.32959333,3179.4,3179.2,0.5601007]
[1720924647183,1.08975675,3179.3,3179.2,0.5601007]
[1720924647379,0.32959333,3179.4,3179.2,0.5601007]
[1720924648208,2.429,3179.8,3179.3,0.30765307]
[1720924648389,1.08973318,3179.7,3179.2,0.5601007]
[1720924648605,1.08973318,3179.6,3179.0,2.3466]
[1720924648878,1.08977739,3179.5,3179.1,2.51642]
[1720924649077,2.75859139,3179.8,3179.1,2.51642]
[1720924649078,1.08977739,3179.4,3179.1,2.51642]
[1720924649388,2.75859139,3179.8,3179.1,2.51642]
[1720924649585,1.08980054,3179.7,3179.1,2.51642]
[1720924649896,3.03445053,3179.8,3179.1,2.51642]
[1720924649897,1.08980054,3179.6,3179.1,2.51642]
[1720924650081,1.08980054,3179.5,3179.1,2.51642]
[1720924650280,1.08980054,3179.4,3179.1,2.51642]
[1720924650480,1.08980054,3179.7,3178.9,2.51658]
[1720924650711,1.50222565,3179.7,3178.7,2.51673]
[1720924651010,1.08980054,3179.6,3178.8,5.51666]
[1720924652096,0.41242511,3179.7,3178.8,5.51666]
[1720924652294,1.08984311,3179.6,3178.8,5.51666]
[1720924652498,0.41242511,3179.7,3178.8,5.51666]
[1720924652694,1.08986792,3179.6,3178.8,5.51666]
[1720924652898,1.08986792,3179.5,3178.8,5.51666]
[1720924653093,1.08986792,3179.4,3178.8,5.51666]
[1720924653298,1.08986792,3179.3,3178.8,5.51666]
[1720924653513,0.41242511,3179.7,3178.8,5.51666]
[1720924653817,1.40698286,3179.6,3178.8,5.51666]
[1720924654015,1.08988121,3179.5,3178.8,5.51666]
[1720924654585,1.08988121,3179.4,3178.8,5.51666]
[1720924654888,1.08988121,3179.3,3178.8,5.51666]
[1720924655099,2.75859139,3179.8,3178.8,5.51666]
[1720924655321,3.03445053,3179.8,3178.8,6.505408]
[1720924655615,1.08985568,3179.7,3178.8,5.51666]
[1720924655796,2.17974012,3179.7,3178.8,5.51666]
[1720924655998,1.08988444,3179.6,3178.8,5.51666]
[1720924656198,1.08988444,3179.5,3178.8,5.51666]
[1720924656399,3.51748444,3179.4,3178.8,3.0]
[1720924656609,1.08988444,3179.3,3178.7,3.0]
[1720924656786,2.4276,3179.4,3178.7,5.51674]
[1720924656985,1.08989671,3179.3,3178.7,5.51674]
[1720924657186,1.08989671,3179.2,3178.8,2.51666]
[1720924657387,2.4276,3179.4,3178.9,3.0]
[1720924657616,1.08984906,3179.3,3178.9,3.0]
[1720924657821,2.4276,3179.4,3178.9,3.0]
[1720924658025,1.08985354,3179.3,3178.9,3.0]
[1720924658222,2.4276,3179.4,3178.9,3.6505416]
[1720924658515,1.08985425,3179.3,3178.9,3.6505416]
[1720924658715,1.08985425,3179.3,3178.9,3.0]
[1720924658916,2.4276,3179.4,3178.8,3.0]
[1720924659123,1.0898769,3179.3,3178.8,3.0]
[1720924659290,1.0898769,3179.3,3178.6,4.854]
[1720924659489,1.0898769,3179.3,3178.7,3.0]
[1720924659689,1.0898769,3179.3,3178.6,1.854]
[1720924659886,1.0898769,3179.3,3178.6,2.825756]
[1720924660091,1.0898769,3179.3,3178.7,3.0]
[1720924662320,1.08987223,3179.2,3178.7,3.0]
[1720924662523,1.08987223,3179.1,3178.7,3.0]
[1720924662829,2.4276,3179.4,3179.0,0.773]
[1720924663030,1.08987244,3179.3,3179.0,0.773]
[1720924663219,1.08987244,3179.2,3179.0,0.773]
[1720924663406,1.08987244,3179.3,3179.0,0.773]
[1720924663719,1.08987244,3179.2,3179.0,0.773]
[1720924663925,1.08987244,3179.3,3179.0,0.773]
[1720924664706,1.08987244,3179.3,3179.2,0.773]
[1720924665515,2.4276,3179.4,3179.2,0.773]
[1720924665718,1.0898487,3179.3,3179.2,0.773]
[1720924666097,2.4276,3179.4,3179.2,0.773]
[1720924666400,1.08984739,3179.3,3179.2,0.773]
[1720924669020,1.08977937,3179.3,3179.2,0.773]
[1720924672504,1.08976157,3179.3,3179.2,0.773]
[1720924675662,2.67729139,3179.8,3179.2,0.773]
[1720924675867,1.08979218,3179.7,3179.4,0.773]
[1720924676046,1.08979218,3179.6,3179.4,0.773]
[1720924676246,2.94502053,3179.8,3179.4,0.773]
[1720924676247,1.08979218,3179.5,3179.4,0.773]
[1720924676444,1.08979218,3179.7,3179.4,0.773]
[1720924676647,1.08979218,3179.6,3179.4,0.773]
[1720924676824,1.08979218,3179.5,3179.4,0.773]
[1720924678729,1.08979218,3179.5,3179.2,2.51635]
[1720924678962,2.67729139,3179.8,3179.4,0.773]
[1720924679327,1.08973395,3179.7,3179.4,0.773]
[1720924679659,2.67729139,3179.8,3179.4,0.773]
[1720924679837,1.08973465,3179.6,3179.4,0.773]
[1720924680038,1.08973465,3179.5,3179.4,0.773]
[1720924680235,1.08973465,3179.5,3179.4,1.101935]
[1720924681465,1.08973465,3179.5,3179.4,0.773]
[1720924681680,0.32959139,3179.8,3179.4,0.773]
[1720924681830,1.08974942,3179.7,3179.4,0.773]
[1720924682031,1.08974942,3179.6,3179.4,0.773]
[1720924682230,1.08974942,3179.7,3179.4,0.773]
[1720924682423,1.08974935,3179.6,3179.4,0.773]
[1720924682626,1.08974935,3179.5,3179.4,0.773]
[1720924684967,2.4587,3179.7,3179.4,0.773]
[1720924685262,1.08974652,3179.6,3179.4,0.773]
[1720924685562,2.4587,3179.7,3179.4,0.773]
[1720924685563,1.08974652,3179.5,3179.4,0.773]
[1720924688427,1.0897593,3179.5,3179.4,0.773]
[1720924688686,1.44460523,3179.5,3178.7,5.51671]
[1720924688833,1.0897593,3179.4,3179.0,0.773]
[1720924689165,1.0897593,3179.3,3179.0,0.773]
[1720924689329,1.0897593,3179.2,3179.0,0.773]
[1720924689530,1.0897593,3179.6,3179.0,0.773]
[1720924689730,1.47756437,3179.6,3179.0,0.773]
[1720924690050,1.0897593,3179.5,3179.0,0.773]
[1720924690251,1.0897593,3179.5,3179.2,0.773]
[1720924691642,0.38780507,3179.6,3179.2,0.773]
[1720924691966,1.08983547,3179.5,3179.2,0.773]
[1720924692130,0.38780507,3179.6,3179.2,0.773]
[1720924692332,1.08984738,3179.5,3179.2,0.773]
[1720924692555,1.08984738,3179.4,3179.2,0.773]
[1720924692762,1.08984738,3179.3,3179.2,0.773]
[1720924693666,1.08984738,3179.3,3178.6,2.4963]
[1720924693848,3.54854738,3179.2,3178.5,3.0]
[1720924694047,1.44470212,3179.1,3178.8,0.773]
[1720924694237,1.08984738,3179.0,3178.8,0.773]
[1720924694438,1.08984738,3179.0,3178.3,2.4963]
[1720924694674,2.4587,3178.9,3178.6,0.773]
[1720924695040,2.1801095,3178.8,3178.6,0.773]
[1720924695236,1.09005703,3178.7,3178.6,0.773]
[1720924698248,1.09005247,3178.8,3178.6,0.773]
[1720924698577,1.09007547,3178.7,3178.6,0.773]
[1720924701597,1.09005247,3178.8,3178.6,0.773]
[1720924701745,1.09004513,3178.7,3178.6,0.773]
[1720924703056,1.09004513,3178.7,3178.1,3.0]
[1720924703256,1.09004513,3178.7,3178.5,0.773]
[1720924703257,1.09009666,3178.6,3178.5,0.773]
[1720924704762,2.3708,3178.7,3178.5,0.773]
[1720924704971,1.09007635,3178.6,3178.5,0.773]
[1720924705451,1.09007714,3178.6,3178.5,0.773]
[1720924707552,1.5451701,3178.6,3178.5,0.723]
[1720924707883,1.5451701,3178.6,3178.3,0.773]
[1720924708068,0.45509296,3178.6,3178.3,0.773]
[1720924708376,2.3708,3178.7,3178.5,0.773]
[1720924708577,1.09013887,3178.6,3178.5,0.773]
[1720924711457,1.09013887,3178.6,3177.9,5.51736]
[1720924711458,2.3708,3178.7,3178.3,0.773]
[1720924711778,1.09016684,3178.6,3178.3,0.773]
[1720924712080,2.7003958,3178.7,3178.3,0.773]
[1720924712081,1.09016684,3178.5,3178.3,0.773]